Workbook

Sheet STSELIND
A1: Single Trait selection index calculation
A2: Parameters
A3: Heritability | B3: 0.1
A4: Repeatability of subsequent records | B4: 0.5
A5: c-squared (among full sibs) | B5: 0
I6: Accuracy of EBV | J6: 0.5290
D7: Index | F7: value of
A8: Information used | B8: Nr.Records | D8: weight | F8: variate:
A9: nr of own records | B9: 1 | D9: 0.080 | E9: own | F9: 12%
A10: nr. of records on dam | B10: 1 | D10: 0.042 | E10: dam | F10: 3%
A11: nr of records on sire | B11: 1 | D11: 0.016 | E11: sire | F11: 0%
A12: nr of full sib records | B12: 3 | D12: 0.082 | E12: FS | F12: 4% | I12: correlation EBV FS | J12: 0.931
A13: nr. of half sib records (excl. full sibs) | B13: 76 | D13: 0.519 | E13: HS | F13: 18% | I13: correlation EBV HS | J13: 0.606
A14: nr. of progeny | B14: 0 | C14: - | D14: - | E14: - | F14: -
C17: P-matrix | J17: G-Matrix | L17: b | N17: accuracy
B18: own | C18: 1.0000 | D18: 0.0500 | E18: 0.0500 | F18: 0.0500 | G18: 0.0250 | J18: 0.100 | K18: own | L18: 0.080 | N18: 0.5290
B19: dam | C19: 0.0500 | D19: 1.0000 | E19: 0.0000 | F19: 0.0500 | G19: 0.0000 | J19: 0.050 | K19: dam | L19: 0.042
B20: sire | C20: 0.0500 | D20: 0.0000 | E20: 1.0000 | F20: 0.0500 | G20: 0.0500 | J20: 0.05 | K20: sire | L20: 0.016
B21: FS | C21: 0.0500 | D21: 0.0500 | E21: 0.0500 | F21: 0.3667 | G21: 0.0250 | J21: 0.05 | K21: FS | L21: 0.082
B22: HS | C22: 0.0250 | D22: 0.0000 | E22: 0.0500 | F22: 0.0250 | G22: 0.0388 | J22: 0.025 | K22: HS | L22: 0.519
C26: Covariance Matrix of information sources of Full Sibs
A27: nr of FS groups per sire | B27: own | C27: 0.0500 | D27: 0.0500 | E27: 0.0500 | F27: 0.3667 | G27: 0.0250
A28: 20 | B28: dam | C28: 0.0500 | D28: 1.0000 | E28: 0.0000 | F28: 0.0500 | G28: 0.0000
A29: size of FS groups | B29: sire | C29: 0.0500 | D29: 0.0000 | E29: 1.0000 | F29: 0.0500 | G29: 0.0500
A30: 4 | B30: FS | C30: 0.3667 | D30: 0.0500 | E30: 0.0500 | F30: 0.3667 | G30: 0.0250
B31: HS | C31: 0.0250 | D31: 0.0000 | E31: 0.0500 | F31: 0.0250 | G31: 0.0388
A32: corr EBV FS
A33: 0.931
A36: size of HS groups | B36: own | C36: 0.0250 | D36: 0.0000 | E36: 0.0500 | F36: 0.0250 | G36: 0.0250
A37: 80 | B37: dam | C37: 0.0000 | D37: 0.0000 | E37: 0.0000 | F37: 0.0500 | G37: 0.0000
B38: sire | C38: 0.0500 | D38: 0.0000 | E38: 1.0000 | F38: 0.0500 | G38: 0.0500
A39: corr EBV HS | B39: FS | C39: 0.0250 | D39: 0.0500 | E39: 0.0500 | F39: 0.0250 | G39: 0.0250
A40: 0.606 | B40: HS | C40: 0.0250 | D40: 0.0000 | E40: 0.0500 | F40: 0.0250 | G40: 0.0386
B53: yes
B54: no

Sheet STSELINDMBV
A1: Single Trait selection index calculation using genomic testing
A2: Parameters
A3: Heritability | B3: 0.25
A4: Repeatability of subsequent records | B4: 0.5
A5: c-squared (among full sibs) | B5: 0.15
A6: Reliability of genomic test (prop expl) | B6: 0.090909 | I6: Accurcay of EBV | J6: 0.6012
D7: Index Wght | F7: Value of Variate
A8: Information used | B8: Nr.Records | C8: Genotyped | D8: Pheno | E8: Geno | F8: Pheno | G8: Geno | I8: Accuracy of Pheno EBV | J8: 0.598
A9: nr of own records | B9: 1 | C9: 0 | D9: 0.201 | E9: - | F9: 21.8% | G9: - | I9: Accuracy of MBV | J9: 0.151
A10: nr. of records on dam | B10: 1 | C10: 0 | D10: 0.093 | E10: - | F10: 4.7% | G10: -
A11: nr of records on sire | B11: 1 | C11: 1 | D11: 0.067 | E11: 0.221 | F11: 2.3% | G11: 0.6%
A12: nr of fulls sib records | B12: 2 | C12: 0 | D12: 0.058 | E12: - | F12: 1.0% | G12: - | I12: correlation EBV FS | J12: 0.761
A13: nr. of half sib records (excl. full sibs) | B13: 9 | C13: 0 | D13: 0.166 | E13: - | F13: 2.9% | G13: - | I13: correlation EBV HS | J13: 0.353
A14: nr. of progeny | B14: 0 | C14: 0 | D14: - | E14: - | F14: - | G14: -
C17: P-matrix | O17: G-Matrix | Q17: b | S17: accuracy
B18: own | C18: 1.0000 | D18: 0.1250 | E18: 0.1250 | F18: 0.2750 | G18: 0.0625 | H18: 0.0114 | O18: 0.250 | P18: own | Q18: 0.201 | S18: 0.6012
B19: dam | C19: 0.1250 | D19: 1.0000 | E19: 0.0000 | F19: 0.1250 | G19: 0.0000 | H19: 0.0000 | O19: 0.125 | P19: dam | Q19: 0.093
B20: sire | C20: 0.1250 | D20: 0.0000 | E20: 1.0000 | F20: 0.1250 | G20: 0.1250 | H20: 0.0227 | O20: 0.125 | P20: sire | Q20: 0.067 | S20: Variance=Covariance matrix of Pheno-DNA EBV's (correlation below diag)
B21: FS | C21: 0.2750 | D21: 0.1250 | E21: 0.1250 | F21: 0.6375 | G21: 0.0625 | H21: 0.0114 | O21: 0.125 | P21: FS | Q21: 0.058 | S21: 0.29773 | T21: 0.12492
B22: HS | C22: 0.0625 | D22: 0.0000 | E22: 0.1250 | F22: 0.0625 | G22: 0.2139 | H22: 0.0114 | O22: 0.0625 | P22: HS | Q22: 0.166 | S22: 0.83104 | T22: 0.07589
B23: sire DNA | C23: 0.0114 | D23: 0.0000 | E23: 0.0227 | F23: 0.0114 | G23: 0.0114 | H23: 0.0227 | O23: 0.011363625 | P23: sire DNA | Q23: 0.2207
C31: Covariance Matrix of information sources of Full Sibs
A32: nr of FS groups per sire | B32: own | C32: 0.2750 | D32: 0.1250 | E32: 0.1250 | F32: 0.6375 | G32: 0.0625 | H32: 0.0114
A33: 4 | B33: dam | C33: 0.1250 | D33: 1.0000 | E33: 0.0000 | F33: 0.1250 | G33: 0.0000 | H33: 0.0000
A34: size of FS groups | B34: sire | C34: 0.1250 | D34: 0.0000 | E34: 1.0000 | F34: 0.1250 | G34: 0.1250 | H34: 0.0227
A35: 3 | B35: FS | C35: 0.6375 | D35: 0.1250 | E35: 0.1250 | F35: 0.4563 | G35: 0.0625 | H35: 0.0114
B36: HS | C36: 0.0625 | D36: 0.0000 | E36: 0.1250 | F36: 0.0625 | G36: 0.2139 | H36: 0.0114
A37: corr EBV FS | B37: sire DNA | C37: 0.0114 | D37: 0.0000 | E37: 0.0227 | F37: 0.0114 | G37: 0.0114 | H37: 0.0227
A38: 0.761
C45: Covariance Matrix of information sources of Half Sibs
A46: size of HS groups | B46: own | C46: 0.0625 | D46: 0.0000 | E46: 0.1250 | F46: 0.0625 | G46: 0.0625 | H46: 0.0114
A47: 12 | B47: dam | C47: 0.0000 | D47: 0.0000 | E47: 0.0000 | F47: 0.1250 | G47: 0.0000 | H47: 0.0000
B48: sire | C48: 0.1250 | D48: 0.0000 | E48: 1.0000 | F48: 0.1250 | G48: 0.1250 | H48: 0.0227
A49: corr EBV HS | B49: FS | C49: 0.0625 | D49: 0.1250 | E49: 0.1250 | F49: 0.0625 | G49: 0.0625 | H49: 0.0114
A50: 0.353 | B50: HS | C50: 0.0625 | D50: 0.0000 | E50: 0.1250 | F50: 0.0625 | G50: 0.2023 | H50: 0.0114
B51: sire DNA | C51: 0.0114 | D51: 0.0000 | E51: 0.0227 | F51: 0.0114 | G51: 0.0114 | H51: 0.0227
I63: sum Vofv | J63: =SUM(E9:E15) -> 0.221
I64: own | J64: =(E9/$J$63)*$D$6 -> 
I65: dam
I66: sire | J66: 0
I67: FS
B68: yes | I68: HS
B69: no | I69: prog
I70: DNAtest | J70: 0
I71: unexpl | J71: 0

Sheet PseudoBLUP (2)
A1: Single Trait calculation of BLUP EBV | J1: nr iter | K1: iteration | L1: accuracy
A2: Parameters | J2: 8 | K2: 1 | L2: 0.54913
A3: Heritability | B3: 0.25 | K3: 2 | L3: 0.57031
A4: Repeatability of subsequent records | B4: 0.25 | K4: 3 | L4: 0.53963
A5: c-squared (among full sibs) | B5: 0 | K5: 4 | L5: 0.51661
A6: selected proportion males | B6: 2% | I6: SD of BV | J6: =SQRT(J7) -> 0.449 | K6: 5 | L6: 0.51364
A7: selected proportion females | B7: 2% | C7: Index | F7: value of | I7: Equilibrium Va | J7: 0.202 | K7: 6 | L7: 0.51823
A8: Information used | B8: Nr.Records | C8: weight | F8: variate: | I8: Equilibrium h2 | J8: 0.212 | K8: 7 | L8: 0.52139
A9: nr of own records | B9: 0 | C9: - | D9: - | E9: - | F9: - | I9: SD of EBV | J9: 0.138 | K9: 8 | L9: 0.30768 | M9: w/o own
A10: nr. of dams per sire | B10: 20 | C10: 0.500 | D10: EBV | E10: dam | F10: 4% | I10: Accuracy of EBV | J10: 0.3077
A11: nr of progeny per dam | B11: 1 | C11: 0.283 | D11: EBV | E11: sire | F11: 1%
A12: nr. of progeny | B12: 0 | C12: - | D12: - | E12: - | F12: - | I12: correlation EBV FS | J12: 1.000
A13: recorded on | B13: both sexes | C13: 0.435 | D13: 19 | E13: HS | F13: 60% | I13: correlation EBV HS | J13: 0.895
C14: -0.217 | D14: 20 | E14: Mates | F14: 0%
C15: - | D15: - | E15: - | F15: - | H15: With Bulmer Correction
C17: P-matrix | J17: G-Matrix | L17: b | N17: accuracy
B18: dam | C18: 0.0061 | D18: 0.0000 | E18: 0.0000 | F18: 0.0000 | J18: 0.0030 | K18: dam | L18: 0.500 | N18: 0.3077
B19: sire | C19: 0.0000 | D19: 0.0061 | E19: 0.0030 | F19: 0.0000 | J19: 0.0030 | K19: sire | L19: 0.283
B20: HS | C20: 0.0000 | D20: 0.0030 | E20: 0.0865 | F20: 0.0002 | J20: 0.0384 | K20: HS | L20: 0.435
B21: Mates | C21: 0.0000 | D21: 0.0000 | E21: 0.0002 | F21: 0.0003 | J21: 0.0000 | K21: Mates | L21: -0.217
C26: Covariance Matrix of information sources of Full Sibs
A27: nr of FS groups per sire | B27: dam | C27: 0.0061 | D27: 0.0000 | E27: 0.0000 | F27: 0.0000
A28: 20 | B28: sire | C28: 0.0000 | D28: 0.0061 | E28: 0.0030 | F28: 0.0000
A29: size of FS groups | B29: HS | C29: 0.0000 | D29: 0.0030 | E29: 0.0865 | F29: 0.0002
A30: 1 | B30: Mates | C30: 0.0000 | D30: 0.0000 | E30: 0.0002 | F30: 0.0003
A32: corr EBV FS
A33: 1.000
A36: size of HS groups | B36: dam | C36: 0.0000 | D36: 0.0000 | E36: 0.0000 | F36: 0.0000
A37: 20 | B37: sire | C37: 0.0000 | D37: 0.0061 | E37: 0.0030 | F37: 0.0000
B38: HS | C38: 0.0000 | D38: 0.0030 | E38: 0.0840 | F38: 0.0002
A39: corr EBV HS | B39: Mates | C39: 0.0000 | D39: 0.0000 | E39: 0.0002 | F39: 0.0003
A40: 0.895
B53: both sexes
B54: females only
B55: males only

Sheet PseudoBLUP
A1: Single Trait calculation of BLUP EBV | J1: nr iter | K1: iteration | L1: accuracy
A2: Parameters | J2: 8 | K2: 1 | L2: 0.54447
A3: Heritability | B3: 0.25 | K3: 2 | L3: 0.56341
A4: Repeatability of subsequent records | B4: 0.25 | K4: 3 | L4: 0.53586
A5: c-squared (among full sibs) | B5: 0.15 | K5: 4 | L5: 0.51525
A6: selected proportion males | B6: 5% | I6: SD of BV | J6: =SQRT(J7) -> 0.453 | K6: 5 | L6: 0.51176
A7: selected proportion females | B7: 25% | C7: Index | F7: value of | I7: Equilibrium Va | J7: 0.206 | K7: 6 | L7: 0.51507
A8: Information used | B8: Nr.Records | C8: weight | F8: variate: | I8: Equilibrium h2 | J8: 0.215 | K8: 7 | L8: 0.51771
A9: nr of own records | B9: 0 | C9: - | D9: - | E9: - | F9: - | I9: SD of EBV | J9: 0.161 | K9: 8 | L9: 0.35621 | M9: w/o own
A10: nr. of dams per sire | B10: 5 | C10: 0.418 | D10: EBV | E10: dam | F10: 5% | I10: Accuracy of EBV | J10: 0.3562
A11: nr of progeny per dam | B11: 8 | C11: 0.306 | D11: EBV | E11: sire | F11: 1%
A12: nr. of progeny | B12: 0 | C12: 0.165 | D12: 4 | E12: FS | F12: 23% | I12: correlation EBV FS | J12: 1.000
A13: recorded on | B13: females only | C13: 0.222 | D13: 16 | E13: HS | F13: 14% | I13: correlation EBV HS | J13: 0.516
C14: -0.111 | D14: 5 | E14: Mates | F14: 0%
C15: - | D15: - | E15: - | F15: - | H15: With Bulmer Correction
C17: P-matrix | J17: G-Matrix | L17: b | N17: accuracy
B18: dam | C18: 0.0133 | D18: 0.0000 | E18: 0.0067 | F18: 0.0000 | G18: 0.0000 | J18: 0.0067 | K18: dam | L18: 0.418 | N18: 0.3562
B19: sire | C19: 0.0000 | D19: 0.0076 | E19: 0.0038 | F19: 0.0038 | G19: 0.0000 | J19: 0.0038 | K19: sire | L19: 0.306
B20: FS | C20: 0.0067 | D20: 0.0038 | E20: 0.4120 | F20: 0.0396 | G20: 0.0000 | J20: 0.0807 | K20: FS | L20: 0.165
B21: HS | C21: 0.0000 | D21: 0.0038 | E21: 0.0396 | F21: 0.1447 | G21: 0.0021 | J21: 0.0396 | K21: HS | L21: 0.222
B22: Mates | C22: 0.0000 | D22: 0.0000 | E22: 0.0000 | F22: 0.0021 | G22: 0.0042 | J22: 0.0000 | K22: Mates | L22: -0.111
C26: Covariance Matrix of information sources of Full Sibs
A27: nr of FS groups per sire | B27: dam | C27: 0.0133 | D27: 0.0000 | E27: 0.0067 | F27: 0.0000 | G27: 0.0000
A28: 5 | B28: sire | C28: 0.0000 | D28: 0.0076 | E28: 0.0038 | F28: 0.0038 | G28: 0.0000
A29: size of FS groups | B29: FS | C29: 0.0067 | D29: 0.0038 | E29: 0.4120 | F29: 0.0396 | G29: 0.0000
A30: 8 | B30: HS | C30: 0.0000 | D30: 0.0038 | E30: 0.0396 | F30: 0.1447 | G30: 0.0021
B31: Mates | C31: 0.0000 | D31: 0.0000 | E31: 0.0000 | F31: 0.0021 | G31: 0.0042
A32: corr EBV FS
A33: 1.000
A36: size of HS groups | B36: dam | C36: 0.0000 | D36: 0.0000 | E36: 0.0067 | F36: 0.0000 | G36: 0.0000
A37: 40 | B37: sire | C37: 0.0000 | D37: 0.0076 | E37: 0.0038 | F37: 0.0038 | G37: 0.0000
B38: FS | C38: 0.0067 | D38: 0.0038 | E38: 0.0396 | F38: 0.0396 | G38: 0.0000
A39: corr EBV HS | B39: HS | C39: 0.0000 | D39: 0.0038 | E39: 0.0396 | F39: 0.1411 | G39: 0.0021
A40: 0.516 | B40: Mates | C40: 0.0000 | D40: 0.0000 | E40: 0.0000 | F40: 0.0021 | G40: 0.0042
B53: both sexes
B54: females only
B55: males only

Sheet example covarstructure
C14: Heritability | D14: 0.25
C15: c-squared (among full sibs) | D15: 0.15
C17: nr. of dams per sire | D17: 4 | E17: FS families | I17: dams/sire = | K17: m
C18: nr of progeny per dam | D18: 3 | E18: prog per FS family | I18: prog/dam = m | K18: n | L18: =D17*D18 -> 12 | M18: prog per HS family | Q18: n.m
F19: FS family | H19: total | M19: HS family | O19: total
E20: =D18*D18 -> 9 | F20: total elements | K20: covar in Vp | L20: =L18*12 -> 144 | M20: total elements | R20: covar in Vp | T20: sum
E21: =D18 -> 3 | F21: diagnonal elements | K21: 1 | L21: =L18 -> 12 | M21: diagnonal elements | R21: 1 | T21: =L21*R21 -> 12
E22: =E20-E21 -> 6 | F22: off diag blocks FS | K22: =D14/2+D15 -> 0.275 | L22: =D17*D18*D18-L18 -> 24 | M22: off diag blocks FS | R22: =D14/2+D15 -> 0.275 | T22: =L22*R22 -> 6.6
R23: =D14/4 -> 0.063 | T23: =L23*R23 -> 0
E24: FS excl self | L24: HS excl self | T24: =SUM(T21:T23) -> 18.6 | U24: Total
F25: FS family mean of size | J25: =D18-1 -> 2 | M25: HS family mean of size | Q25: =L21-E21 -> 9 | T25: =T24/L20 -> 0.1291666667 | U25: Mean
E26: =J25*J25 -> 4 | F26: total elements | K26: covar in Vp | L26: =Q25*Q25 -> 81 | M26: total elements | R26: covar in Vp
E27: =J25 -> 2 | F27: diagnonal elements | K27: =K21 -> 1 | L27: =Q25 -> 9 | M27: diagnonal elements | R27: =R21 -> 1
E28: =E26-E27 -> 2 | F28: off diag blocks FS | K28: =K22 -> 0.275 | L28: =(D17-1)*(D18*D18-D18) -> 18 | M28: off diag blocks FS | R28: =R22 -> 0.275
L29: =(D17-1)*(D17-1)*(D18*D18)-(D17-1)*(D18*D18) -> 54 | M29: off diag blocks HS | R29: 0.063
J30: average | K30: =(E27*K27+E28*K28)/E26 -> 0.6375 | Q30: average | R30: =(L27*R27+L28*R28+L29*R29)/L26 -> 0.2139

Sheet About
B2: These spreadsheets are developed by Julius van der Werf, Uiversity of New England, Armidale
D4: contact: jvanderw@une.edu.au
B8: STSELIND | C8: simple selection index based on max 6 information sources
B11: STSELTMBV | C11: as STSELIND but additionally one can have genomic predictions for the traits on candidatse or relatives
B13: PseudoBLUP | C13: Predicting PseudoBLUP EBV accurcay
D14: Iterating on STSELIND and assuming parents an EBV accurcay based on their parents and sibs
D15: Also allowing animals to have progeny records (but note that the procedure does iterate without progeny records on animal, to get parental EBV accuracies without prgeny means. Just leaving candidates OP out in last iteration round.
D16: Also allowing animals to have no own performance (but note that the procedure does iterate with own OP on animal, to get parental EBV accuracies with own EBV. Just adding in candidates progeny in last iteration round.

Sheet Sheet3

Sheet Sheet1
F1: P | J1: G | M1: b | O1: rel | P1: acc
B2: h2 | C2: 0.3 | E2: own | F2: =1 -> 1 | J2: =C2 -> 0.3 | M2: =J2/F2 -> 0.3 | O2: =C2 -> 0.300 | P2: =SQRT(O2) -> 0.5477225575
B5: ebvsirer2 | C5: 0.99 | E5: OWN | F5: 1 | G5: =0.5*C5^2*C2 -> 0.147015 | J5: =C2 -> 0.3 | M5: =MMULT(MINVERSE(F5:G6),J5:J6) -> 0.2444623135 | O5: =MMULT(MMULT(TRANSPOSE(M5:M6),F5:G6),M5:M6)/C2 -> 0.4295879351 | P5: =SQRT(O5) -> 0.6554295806
E6: sire | F6: =G5 -> 0.147015 | G6: =C5^2*C2 -> 0.29403 | J6: =0.5*C5^2*C2 -> 0.147015 | M6: 0.3777688432
D7: t
B8: 25HS | C8: 25 | D8: =0.25*C2 -> 0.075 | F8: 1 | G8: =F9 -> 0.075 | H8: =F10 -> 0.075 | J8: =C2 -> 0.3 | M8: =MMULT(MINVERSE(F8:H10),J8:J10) -> 0.2383265695 | O8: =MMULT(MMULT(TRANSPOSE(M8:M10),F8:H10),M8:M10)/C5 ->  | P8: =SQRT(O8) -> 
B9: 50prog | C9: 50 | D9: =D8 -> 0.075 | F9: =D8 -> 0.075 | G9: =D8+(1-D8)/25 -> 0.112 | H9: =G10 -> 0.0375 | J9: =D8 -> 0.075 | M9: 0.3528696918
F10: =D9 -> 0.075 | G10: =C2/8 -> 0.0375 | H10: =D9+(1-D9)/C9 -> 0.0935 | J10: =D9 -> 0.075 | M10: 0.4694427149
